bitfinex-derivatives/quotes_ETHF0:USTF0_20250329
["timestamp","ask_amount","ask_price","bid_price","bid_amount"]
[1743239597282,17.03976135,1882.8,1882.7,45.94181015]
[1743239598178,17.03976135,1882.8,1882.7,47.00462015]
[1743239598786,17.03976135,1882.8,1882.7,47.00460161]
[1743239599583,19.11229853,1882.8,1882.7,45.94179161]
[1743239599987,16.69334853,1882.8,1882.7,45.94179161]
[1743239600182,11.51480853,1882.8,1882.7,65.33905385]
[1743239600484,11.51480853,1882.8,1882.7,67.04377752]
[1743239601185,9.8548867,1882.8,1882.7,69.74599871]
[1743239601571,7.6646167,1882.8,1882.7,69.74599871]
[1743239601979,0.00795756,1882.9,1882.8,1.06275]
[1743239602180,0.00795756,1882.9,1882.8,3.70054161]
[1743239602379,0.00795756,1882.9,1882.8,12.94930613]
[1743239602679,0.00795756,1882.9,1882.8,64.2720298]
[1743239602879,7.56e-06,1882.9,1882.8,73.77059808]
[1743239603787,7.56e-06,1882.9,1882.8,75.76198337]
[1743239604187,18.79552802,1883.4,1883.3,1.06247]
[1743239604389,18.79552802,1883.4,1883.3,4.77426161]
[1743239604586,18.79552802,1883.4,1883.3,11.76954557]
[1743239604787,18.79552802,1883.4,1883.3,52.56954557]
[1743239605488,0.00795756,1883.5,1883.4,1.06241]
[1743239605685,0.00795756,1883.5,1883.4,3.70150161]
[1743239606188,7.56e-06,1883.5,1883.4,55.021039]
[1743239606380,7.56e-06,1883.5,1883.4,64.30483779]
[1743239606577,7.56e-06,1883.5,1883.4,63.80084618]
[1743239606785,7.56e-06,1883.5,1883.4,64.30169985]
[1743239607286,18.79552802,1883.8,1883.7,1.06224]
[1743239607479,18.79552802,1883.8,1883.7,4.77089367]
[1743239607685,18.79552802,1883.8,1883.7,12.30035472]
[1743239607885,18.79552802,1883.8,1883.7,53.10035472]
[1743239608289,0.6741,1884.1,1884.0,1.06208]
[1743239608493,0.6741,1884.1,1884.0,4.26988]
[1743239608889,0.6741,1884.1,1884.0,45.06988]
[1743239609289,0.6741,1884.1,1884.0,46.52368]
[1743239609696,2.0884,1884.1,1884.0,46.52368]
[1743239610598,2.0884,1884.1,1884.0,46.92851802]
[1743239611197,2.0884,1884.1,1884.0,46.52368]
[1743239611694,3.15042,1884.1,1884.0,44.0078]
[1743239614294,2.0884,1884.1,1884.0,45.06988]
[1743239614891,3.15042,1884.1,1884.0,44.0078]
[1743239616196,6.52942,1884.1,1884.0,44.0078]
[1743239620304,3.15042,1884.1,1884.0,44.0078]
[1743239620600,6.52942,1884.1,1884.0,44.0078]
[1743239620902,6.52942,1884.1,1884.0,45.06988]
[1743239621199,5.4674,1884.1,1884.0,46.41218]
[1743239621601,6.52942,1884.1,1884.0,45.3501]
[1743239623205,6.52942,1884.1,1884.0,44.0078]
[1743239627307,6.52942,1884.1,1884.0,45.4873]
[1743239627712,6.52942,1884.1,1884.0,42.2795]
[1743239627909,6.52942,1884.1,1884.0,45.4873]
[1743239628912,6.52942,1884.1,1884.0,46.54938]
[1743239629412,6.52942,1884.1,1884.0,45.98720347]
[1743239633611,6.52942,1884.1,1884.0,47.04928347]
[1743239634116,6.52942,1884.1,1884.0,45.98720347]
[1743239634819,6.52942,1884.1,1884.0,45.99028509]
[1743239635214,6.52942,1884.1,1884.0,45.99028468]
[1743239636922,6.52942,1884.1,1884.0,45.99059575]
[1743239638220,6.52942,1884.1,1884.0,47.05267575]
[1743239638420,6.52942,1884.1,1884.0,45.99059575]
[1743239638819,6.52942,1884.1,1884.0,42.78279575]
[1743239639020,6.52942,1884.1,1884.0,43.8449389]
[1743239639219,6.52942,1884.1,1884.0,47.0527389]
[1743239639626,6.52942,1884.1,1884.0,42.7828589]
[1743239639825,6.52942,1884.1,1884.0,45.9906589]
[1743239640727,1.06219,1883.8,1883.7,1.70472367]
[1743239641024,4.44019,1883.8,1883.7,1.70472367]
[1743239641223,4.44019,1883.8,1883.5,3.2078]
[1743239641224,1.0623,1883.6,1883.5,3.2078]
[1743239641622,2.0788,1883.7,1883.5,40.8]
[1743239641816,2.4585,1883.6,1883.5,40.8]
[1743239642025,5.6663,1883.6,1883.5,40.8]
[1743239642230,8.1663,1883.6,1883.5,40.8]
[1743239644729,1.06241,1883.4,1883.3,1.3732]
[1743239644920,1.06247,1883.3,1883.2,1.48775756]
[1743239645117,3.12137,1883.3,1883.2,1.48775756]
[1743239645322,3.12137,1883.3,1883.2,0.00795756]
[1743239645729,3.12137,1883.3,1883.2,40.80795756]
[1743239649534,1.06247,1883.3,1883.2,40.80795756]
[1743239651536,1.06247,1883.3,1883.2,43.01855756]
[1743239651739,1.06246,1883.4,1883.2,43.01855756]
[1743239651928,3.379,1883.4,1883.3,5.75242]
[1743239652127,1.4567,1883.7,1883.3,4.69]
[1743239652329,4.44141,1883.5,1883.4,1.4822]
[1743239652935,4.44141,1883.5,1883.4,42.2822]
[1743239657133,1.06241,1883.5,1883.4,42.2822]
[1743239657332,4.44141,1883.5,1883.4,42.2822]
[1743239658840,4.44141,1883.5,1883.4,40.8]
[1743239659542,6.55951,1883.5,1883.4,40.8]
[1743239670056,9.05951,1883.5,1883.4,40.8]
[1743239674950,1.06241,1883.5,1883.4,40.8]
[1743239675454,4.44141,1883.5,1883.4,40.8]
[1743239675654,4.44141,1883.5,1883.4,42.1663]
[1743239676853,5.85131,1883.5,1883.4,42.1663]
[1743239678659,4.44141,1883.5,1883.4,42.1663]
[1743239681860,5.89721,1883.5,1883.4,42.1663]
[1743239683761,9.10501,1883.5,1883.4,42.1663]
[1743239683963,7.64921,1883.5,1883.4,42.1663]
[1743239685154,9.70861,1883.5,1883.4,42.1663]
[1743239690270,9.70861,1883.5,1883.4,42.8358]
[1743239690967,6.50081,1883.5,1883.4,42.8358]
[1743239691274,9.70861,1883.5,1883.4,42.8358]
[1743239695070,9.70861,1883.5,1883.4,42.1663]
[1743239695266,1.06247,1883.3,1883.2,0.00795756]
[1743239695472,1.06275,1882.8,1882.7,1.70472367]
[1743239695678,4.44175,1882.8,1882.7,2.1950748]
[1743239695872,4.44175,1882.8,1882.7,0.49035113]
[1743239696071,1.06281,1882.7,1882.6,0.7146]
[1743239696272,1.06281,1882.7,1882.6,42.00462352]
[1743239696686,1.06281,1882.7,1882.6,42.00461499]
[1743239698679,2.46731,1882.7,1882.6,42.2447]
[1743239699087,3.18731,1882.7,1882.6,42.2447]
[1743239700385,21.98283802,1882.7,1882.6,42.2447]
[1743239701286,25.19063802,1882.7,1882.6,42.2447]
[1743239701588,25.19063802,1882.7,1882.6,40.8]
[1743239702683,19.85833802,1882.7,1882.6,42.9464]
[1743239702898,19.85833802,1882.7,1882.6,43.6252]
[1743239703502,21.21973802,1882.7,1882.6,43.6252]
[1743239705601,37.81576138,1882.7,1882.6,43.6252]
[1743239707998,37.81576138,1882.7,1882.6,42.9464]
[1743239708497,37.81576138,1882.7,1882.6,42.2336]
[1743239713709,35.39155138,1882.7,1882.6,42.2336]
[1743239714010,38.77155138,1882.7,1882.6,43.29647]
[1743239714212,38.77155138,1882.7,1882.6,43.78496393]
[1743239714510,35.39155138,1882.7,1882.6,46.28496393]
[1743239714706,35.39155138,1882.7,1882.6,53.04179121]
[1743239715608,0.00795756,1882.8,1882.7,1.06281]
[1743239715808,4.44258,1883.1,1882.9,1.06267]
[1743239716112,4.44258,1883.1,1883.0,4.5879]
[1743239716312,4.44258,1883.1,1883.0,45.3879]
[1743239718112,3.38,1883.1,1883.0,45.3879]
[1743239718318,2.2671,1883.1,1883.0,46.45054]
[1743239718509,3.32968,1883.1,1883.0,45.3879]
[1743239718709,2.2671,1883.1,1883.0,45.3879]
[1743239719016,2.2671,1883.1,1883.0,46.7294]
[1743239719914,3.32968,1883.1,1883.0,43.5216]
[1743239721007,2.2671,1883.1,1883.0,44.58424]
[1743239721407,1.07049756,1883.2,1883.0,47.79204]
[1743239721607,1.07049756,1883.2,1883.1,1.4662]
[1743239721608,4.44949756,1883.2,1883.1,1.4662]
[1743239722106,4.44949756,1883.2,1883.1,42.2662]
[1743239725123,5.15339756,1883.2,1883.1,42.2662]
[1743239725620,4.09085756,1883.2,1883.1,42.2662]
[1743239726122,3.38695756,1883.2,1883.1,42.2662]
[1743239726323,3.38695756,1883.2,1883.1,42.9863]
[1743239726514,4.44948756,1883.2,1883.1,42.9863]
[1743239726923,3.38695756,1883.2,1883.1,42.9863]
[1743239727220,4.44948756,1883.2,1883.1,42.9863]
[1743239727421,3.38695756,1883.2,1883.1,42.9863]
[1743239729016,4.44948756,1883.2,1883.1,40.8]
[1743239729217,7.65728756,1883.2,1883.1,40.8]
[1743239729525,1.06275,1882.8,1882.7,1.3665]
[1743239729820,4.44175,1882.8,1882.7,1.3665]
[1743239730422,5.84265,1882.8,1882.7,1.3665]
[1743239730625,5.84265,1882.8,1882.7,42.1665]
[1743239733025,3.379,1882.8,1882.7,42.1665]
[1743239733327,3.379,1882.8,1882.7,43.22931]
[1743239733821,3.379,1882.8,1882.7,42.1665]
[1743239734028,3.379,1882.8,1882.7,45.3743]
[1743239734326,3.379,1882.8,1882.7,45.86304545]
[1743239735124,4.44175,1882.8,1882.7,45.86304545]
[1743239735427,4.44175,1882.8,1882.7,45.3743]
[1743239736323,4.44175,1882.8,1882.7,40.8]
[1743239741124,5.17375,1882.8,1882.7,40.8]
[1743239742323,6.51895,1882.8,1882.7,40.8]
[1743239744729,9.72675,1882.8,1882.7,40.8]
[1743239747930,1.06287,1882.6,1882.5,0.00795756]
[1743239748123,4.27067,1882.6,1882.5,0.00795756]
[1743239748530,1.06309,1882.2,1882.1,0.48937832]
[1743239748829,1.06309,1882.2,1882.1,1.4189]
[1743239748830,4.44209,1882.2,1882.1,1.4189]
[1743239749031,4.44209,1882.2,1882.1,42.2189]
[1743239750328,4.44209,1882.2,1882.1,42.9389]
[1743239750531,3.379,1882.2,1882.1,43.42823226]
[1743239750727,3.379,1882.2,1882.1,42.9389]
[1743239750936,1.3742,1882.4,1882.1,42.9389]
[1743239751138,0.7224,1882.5,1882.2,1.4189]
[1743239751139,3.379,1882.3,1882.2,1.4189]
[1743239751332,3.379,1882.3,1882.2,2.1367]
[1743239751535,4.44203,1882.3,1882.2,2.1367]
[1743239752140,4.44203,1882.3,1882.2,42.9367]
[1743239752337,4.44203,1882.3,1882.2,42.2189]
[1743239757239,4.44203,1882.3,1882.2,42.70810672]
[1743239757640,4.44203,1882.3,1882.2,42.2189]
[1743239758043,4.44203,1882.3,1882.2,42.70810672]
[1743239759934,4.44203,1882.3,1882.2,42.2189]
[1743239760135,4.44203,1882.3,1882.2,42.70848898]
[1743239760944,4.44203,1882.3,1882.2,42.2189]
[1743239762539,1.06303,1882.3,1882.2,42.2189]
[1743239762847,4.44303,1882.3,1882.2,42.7086234]
[1743239763644,3.38,1882.3,1882.2,42.70867354]
[1743239763842,4.44303,1882.3,1882.2,42.70867354]
[1743239764549,3.38,1882.3,1882.2,42.70867354]
[1743239765648,4.44303,1882.3,1882.2,42.70867354]
[1743239766944,3.38,1882.3,1882.2,45.91647354]
[1743239767142,3.38,1882.4,1882.3,1.063]
[1743239767343,3.38,1882.4,1882.3,3.68737354]
[1743239767658,3.38,1882.4,1882.3,3.68783051]
[1743239767837,3.38,1882.4,1882.3,44.48783051]
[1743239769453,3.38,1882.4,1882.3,44.4878188]
[1743239770254,4.44298,1882.4,1882.3,43.42479629]
[1743239770644,4.44298,1882.4,1882.3,43.42480481]
[1743239772650,4.44298,1882.4,1882.3,42.70140481]
[1743239772946,5.86958,1882.4,1882.3,42.70140481]
[1743239773139,4.44298,1882.4,1882.3,42.70140481]
[1743239773338,3.38,1882.4,1882.3,42.70140481]
[1743239774659,4.44298,1882.4,1882.3,42.70140481]
[1743239774953,5.86958,1882.4,1882.3,42.70140481]
[1743239776450,3.38,1882.4,1882.3,42.70140481]
[1743239776959,4.44298,1882.4,1882.3,42.70164537]
[1743239778859,5.91428,1882.4,1882.3,42.70164537]
[1743239780247,5.91428,1882.4,1882.3,41.29044537]
[1743239780950,5.91428,1882.4,1882.3,41.29060342]
[1743239782259,4.8513,1882.4,1882.3,43.73843342]
[1743239782461,3.38,1882.4,1882.3,43.73843342]
[1743239782752,3.38,1882.4,1882.3,43.24783]
[1743239782966,3.38,1882.4,1882.3,43.73830097]
[1743239783159,3.38,1882.4,1882.3,42.67527097]
[1743239783458,3.38,1882.4,1882.3,45.88307097]
[1743239783649,4.44298,1882.4,1882.3,45.88307097]
[1743239784862,4.44298,1882.4,1882.3,45.88309568]
[1743239785058,5.79038,1882.4,1882.3,45.88309568]
[1743239785364,5.79038,1882.4,1882.3,42.67529568]
[1743239786454,5.79038,1882.4,1882.3,0.49049568]
[1743239786648,1.06315,1882.1,1882.0,0.00795756]
[1743239786855,4.44215,1882.1,1882.0,0.49883381]
[1743239787159,4.44215,1882.1,1882.0,0.00795756]
[1743239787555,6.49095,1882.1,1882.0,40.80795756]
[1743239788650,9.69875,1882.1,1882.0,40.80795756]
[1743239788953,12.19875,1882.1,1882.0,40.80795756]
[1743239791252,9.69875,1882.1,1882.0,40.80795756]
[1743239792961,1.06337,1881.7,1881.6,3.2078]
[1743239793162,4.44337,1881.7,1881.6,3.2078]
[1743239793963,1.06349,1881.5,1881.4,0.48983642]
[1743239794259,2.45137,1881.6,1881.5,0.00795756]
[1743239794466,5.83137,1881.6,1881.5,40.80795756]
[1743239794662,7.17677,1881.6,1881.5,40.80795756]
[1743239799867,2.65887,1881.4,1881.0,3.2078]
[1743239800068,1.06383,1880.9,1880.8,1.4562]
[1743239800272,1.06409,1880.5,1880.2,4.27201]
[1743239800471,3.382,1880.4,1880.3,2.1368]
[1743239800976,3.382,1880.4,1880.3,42.9368]
[1743239803367,4.44611,1880.4,1880.3,42.9368]
[1743239806270,3.382,1880.4,1880.3,44.00097]
[1743239806477,3.382,1880.4,1880.3,42.9368]
[1743239806677,4.44611,1880.4,1880.3,42.9368]
[1743239810271,4.44611,1880.4,1880.3,40.8]
[1743239810470,4.44611,1880.4,1880.3,42.2759]
[1743239810471,5.86921,1880.4,1880.3,42.2759]
[1743239810676,7.25711,1880.4,1880.3,42.2759]
[1743239813577,3.383,1880.4,1880.3,42.2759]
[1743239813767,3.383,1880.4,1880.3,42.9889]
[1743239813975,4.44711,1880.4,1880.3,42.9889]
[1743239818579,4.44711,1880.4,1880.3,42.2759]
[1743239820486,3.383,1880.4,1880.3,43.34004]
[1743239821582,0.00795756,1880.5,1880.4,1.06411]
[1743239821775,3.39095756,1880.5,1880.4,7.07551]
[1743239822179,3.39095756,1880.5,1880.4,47.87551]
[1743239823289,4.45500756,1880.5,1880.4,47.87551]
[1743239823988,4.45500756,1880.5,1880.4,48.36373448]
[1743239824288,4.45500756,1880.5,1880.4,47.87551]
[1743239824497,4.45500756,1880.5,1880.4,47.29962448]
[1743239824674,4.45500756,1880.5,1880.4,42.213]
[1743239824980,4.45500756,1880.5,1880.4,42.70122448]
[1743239825185,4.45500756,1880.5,1880.4,42.213]
[1743239825387,4.45500756,1880.5,1880.4,42.70122448]
[1743239825683,5.83870756,1880.5,1880.4,42.70122448]
[1743239825878,3.39095756,1880.5,1880.4,46.97313448]
[1743239826288,3.39095756,1880.5,1880.4,45.91070511]
[1743239827479,4.45500756,1880.5,1880.4,45.91070511]
[1743239828084,4.45500756,1880.5,1880.4,46.97481511]
[1743239828085,3.39095756,1880.5,1880.4,46.97481511]
[1743239828378,4.45500756,1880.5,1880.4,46.97481511]
[1743239828586,4.45500756,1880.5,1880.4,45.91070511]
[1743239829082,4.45500756,1880.5,1880.4,46.97481511]
[1743239829289,3.39095756,1880.5,1880.4,46.97481511]
[1743239830480,0.00795756,1880.5,1880.4,46.97504076]
[1743239831585,0.00795756,1880.5,1880.4,46.97493688]
[1743239832483,0.00795756,1880.5,1880.4,46.48491]
[1743239832886,0.00795756,1880.5,1880.4,46.97492154]
[1743239833689,0.00795756,1880.5,1880.4,46.97488136]
[1743239835683,0.00795756,1880.5,1880.4,46.48491]
[1743239835886,0.00795756,1880.5,1880.4,46.97483365]
[1743239836386,1.07200756,1880.5,1880.4,45.91072365]
[1743239836592,3.21340756,1880.5,1880.4,41.28992365]
[1743239837091,2.14935756,1880.5,1880.4,45.56183365]
[1743239837284,0.00795756,1880.5,1880.4,47.01933365]
[1743239837691,0.00795756,1880.5,1880.4,46.52941]
[1743239837993,0.00795756,1880.5,1880.4,47.01930427]
[1743239838385,1.07200756,1880.5,1880.4,42.74739427]
[1743239838591,2.44010756,1880.5,1880.4,42.74739427]
[1743239839594,1.37605756,1880.5,1880.4,43.81150427]
[1743239839894,1.37605756,1880.5,1880.4,42.74739427]
[1743239839895,2.44010756,1880.5,1880.4,42.74739427]
[1743239840195,1.37605756,1880.5,1880.4,43.81150427]
[1743239840394,1.37605756,1880.5,1880.4,47.01930427]
[1743239840895,2.44010756,1880.5,1880.4,45.95519427]
[1743239841196,1.37605756,1880.5,1880.4,47.01930427]
[1743239843495,1.37605756,1880.5,1880.4,43.81150427]
[1743239843697,1.37605756,1880.5,1880.4,47.01970146]
[1743239844697,2.44010756,1880.5,1880.4,45.95559146]
[1743239844887,3.11400756,1880.5,1880.4,47.01970146]
[1743239845090,3.11400756,1880.5,1880.4,45.95559146]
[1743239845298,3.11400756,1880.5,1880.4,44.49809146]
[1743239845691,3.11400756,1880.5,1880.4,40.8]
[1743239845894,3.11400756,1880.5,1880.4,41.29041264]
[1743239847490,3.11400756,1880.5,1880.4,42.65141264]
[1743239849092,2.04995756,1880.5,1880.4,43.71552264]
[1743239849293,2.04995756,1880.5,1880.4,42.65141264]
[1743239849596,2.04995756,1880.5,1880.4,46.92332264]
[1743239850195,0.00795756,1880.5,1880.4,46.92332264]
[1743239851504,0.00795756,1880.5,1880.4,48.31092264]
[1743239852906,0.00795756,1880.5,1880.4,55.22141583]
[1743239853401,0.00795756,1880.5,1880.4,56.9261395]
[1743239853603,0.00795756,1880.5,1880.4,55.22141583]
[1743239853802,0.00795756,1880.5,1880.4,55.22133133]
[1743239854100,0.00795756,1880.5,1880.4,56.926055]
[1743239854508,0.00795756,1880.5,1880.4,55.22133133]
[1743239856006,0.00795756,1880.5,1880.4,55.75325202]
[1743239856199,0.00795756,1880.5,1880.4,55.22125202]
[1743239856391,0.00795756,1880.5,1880.4,55.75325202]
[1743239857305,0.00795756,1880.5,1880.4,57.45797569]
[1743239858009,0.00795756,1880.5,1880.4,55.75325202]
[1743239858305,0.00795756,1880.5,1880.4,57.45797569]
[1743239858697,0.00795756,1880.5,1880.4,55.75325202]
[1743239859805,0.00795756,1880.5,1880.4,55.75298565]
[1743239861802,0.00795756,1880.5,1880.4,55.75288825]
[1743239863202,0.00795756,1880.5,1880.4,52.54508825]
[1743239863402,0.00795756,1880.5,1880.4,55.75288825]
[1743239863808,0.00795756,1880.5,1880.4,55.75282766]
[1743239865804,0.00795756,1880.5,1880.4,55.75279386]
[1743239868013,4.7803,1880.8,1880.7,1.06394]
[1743239868214,4.7803,1880.8,1880.7,4.76153067]
[1743239868614,4.7803,1880.8,1880.7,45.56153067]
[1743239869815,4.7803,1880.8,1880.7,45.07174]
[1743239870010,4.7803,1880.8,1880.7,45.56147501]
[1743239870409,1.41565756,1880.9,1880.7,51.39430274]
[1743239870606,0.00795756,1880.9,1880.8,2.98211501]
[1743239871003,0.00795756,1880.9,1880.8,9.87888274]
[1743239871203,0.00795756,1880.9,1880.8,50.67888274]
[1743239871820,0.00795756,1880.9,1880.8,50.67866194]
[1743239872312,16.59602336,1881.0,1880.9,1.06383]
[1743239872519,2.8625,1881.1,1881.0,1.06377]
[1743239872819,2.8625,1881.1,1881.0,2.23068421]
[1743239873005,2.8625,1881.1,1881.0,51.27750611]
[1743239873210,2.1408,1881.1,1881.0,51.27750611]
[1743239873710,3.38995756,1881.2,1881.1,1.06371]
[1743239873910,0.00795756,1881.2,1881.1,6.14629492]
[1743239874418,1.35885756,1881.2,1881.1,46.94629492]
[1743239874620,1.35885756,1881.2,1881.1,45.56069492]
[1743239875918,1.35885756,1881.2,1881.1,44.49698492]
[1743239875919,2.42251756,1881.2,1881.1,44.49698492]
[1743239876126,2.42251756,1881.2,1881.1,44.0078]
[1743239876419,8.13031756,1881.2,1881.1,40.8]
[1743239878616,5.63031756,1881.2,1881.1,40.8]
[1743239880826,8.13031756,1881.2,1881.1,40.8]
[1743239883422,5.63031756,1881.2,1881.1,40.8]
[1743239883722,2.42251756,1881.2,1881.1,40.8]
[1743239886917,4.74285756,1881.2,1881.1,42.35346582]
[1743239887213,4.74285756,1881.2,1881.1,43.76466582]
[1743239887415,4.74285756,1881.2,1881.1,44.25430346]
[1743239887621,4.74285756,1881.2,1881.1,43.76454764]
[1743239889426,4.74285756,1881.2,1881.1,43.76446138]
[1743239889927,4.74285756,1881.2,1881.1,46.97226138]
[1743239890122,3.39195756,1881.2,1881.1,46.97226138]
[1743239891032,4.84585756,1881.2,1881.1,46.97226138]
[1743239891418,4.84585756,1881.2,1881.1,46.97220533]
[1743239892927,4.84585756,1881.2,1881.1,46.48271]
[1743239893142,4.84585756,1881.2,1881.1,46.97217761]
[1743239893521,4.84585756,1881.2,1881.1,46.48271]
[1743239894014,5.90951756,1881.2,1881.1,40.8]
[1743239902132,1.07161756,1881.2,1881.1,40.8]
[1743239902430,1.07161756,1881.2,1881.1,41.28958312]
[1743239902431,4.45461756,1881.2,1881.1,41.28958312]
[1743239902633,4.45461756,1881.2,1881.1,42.73988312]
[1743239902823,5.88141756,1881.2,1881.1,42.73988312]
[1743239903731,5.88041756,1881.2,1881.1,42.73988312]
[1743239903926,3.38995756,1881.2,1881.1,42.73988312]
[1743239904125,3.39295756,1881.2,1881.1,43.80359312]
[1743239904330,4.45661756,1881.2,1881.1,42.73988312]
[1743239904525,6.55831756,1881.2,1881.1,42.73988312]
[1743239904733,7.23441756,1881.2,1881.1,42.73988312]
[1743239906136,7.23441756,1881.2,1881.1,42.74013627]
[1743239908334,7.23441756,1881.2,1881.1,42.74018096]
[1743239910131,7.23441756,1881.2,1881.1,42.2503]
[1743239910336,7.23441756,1881.2,1881.1,42.74018788]
[1743239910533,4.45661756,1881.2,1881.1,42.74018788]
[1743239910930,4.45561756,1881.2,1881.1,42.74018788]
[1743239911138,3.39195756,1881.2,1881.1,42.74018788]
[1743239911434,4.45561756,1881.2,1881.1,42.74018788]
[1743239912227,4.45561756,1881.2,1881.1,43.23009314]
[1743239912429,4.45561756,1881.2,1881.1,42.74020526]
[1743239913342,5.89271756,1881.2,1881.1,42.74020526]
[1743239914240,5.89271756,1881.2,1881.1,42.74026469]
[1743239914443,24.64246016,1881.2,1881.1,42.74026469]
[1743239916240,21.25846016,1881.2,1881.1,42.74026469]
[1743239916439,39.8822099,1881.2,1881.1,42.74026469]
[1743239918970,38.8185499,1881.2,1881.1,42.74026469]
[1743239919261,38.8185499,1881.2,1881.1,43.80397469]
[1743239919477,38.8185499,1881.2,1881.1,42.74026469]
[1743239919779,39.8822099,1881.2,1881.1,42.74026469]
[1743239919982,38.8185499,1881.2,1881.1,42.74026469]
[1743239920583,39.8822099,1881.2,1881.1,42.74026469]
[1743239920865,38.8185499,1881.2,1881.1,43.80397469]
[1743239922274,38.8185499,1881.2,1881.1,43.80408633]
[1743239924263,38.8185499,1881.2,1881.1,43.80405752]
[1743239924463,3.38995756,1881.2,1881.1,43.80405752]
[1743239927249,0.00795756,1881.2,1881.1,43.80405752]
[1743239928355,3.38895756,1881.2,1881.1,44.29393002]
[1743239928650,3.38895756,1881.2,1881.1,43.8038825]
[1743239929047,4.45261756,1881.2,1881.1,42.7401725]
[1743239929243,5.84261756,1881.2,1881.1,43.8038825]
[1743239930348,5.84261756,1881.2,1881.1,47.0116825]
[1743239932556,5.84261756,1881.2,1881.1,47.01186592]
[1743239933052,5.84261756,1881.2,1881.1,43.80406592]
[1743239933252,5.84261756,1881.2,1881.1,47.01186592]
[1743239934055,4.77895756,1881.2,1881.1,47.01186592]
[1743239934357,4.77895756,1881.2,1881.1,47.01187688]
[1743239934950,3.38895756,1881.2,1881.1,47.01187688]
[1743239936556,3.38895756,1881.2,1881.1,53.91476909]
[1743239938056,3.38895756,1881.2,1881.1,50.70696909]
[1743239938257,3.38895756,1881.2,1881.1,53.91476909]
[1743239938454,3.38895756,1881.2,1881.1,53.91469943]
[1743239940458,4.45261756,1881.2,1881.1,52.85111336]
[1743239940653,4.45261756,1881.2,1881.1,53.91482336]
[1743239940960,4.45261756,1881.2,1881.1,45.94822115]
[1743239941252,5.16211756,1881.2,1881.1,45.94822115]
[1743239941760,5.16211756,1881.2,1881.1,41.29012115]
[1743239942055,5.16211756,1881.2,1881.1,40.8]
[1743239942449,6.49921756,1881.2,1881.1,40.8]
[1743239943357,8.99921756,1881.2,1881.1,40.8]
[1743239943650,6.49921756,1881.2,1881.1,40.8]
[1743239945857,8.99921756,1881.2,1881.1,40.8]
[1743239946043,1.06377,1881.0,1880.9,0.48960892]
[1743239946246,1.06394,1880.7,1880.6,3.2078]
[1743239946451,4.44594,1880.7,1880.6,3.2078]
[1743239947150,4.44594,1880.7,1880.6,44.0078]
[1743239949347,5.17204,1880.7,1880.6,44.0078]
[1743239954568,5.17204,1880.7,1880.6,40.8]
[1743239954877,1.06417,1880.3,1880.2,0.00795756]
[1743239955070,4.44617,1880.3,1880.2,0.00795756]
[1743239955662,5.91307,1880.3,1880.2,40.80795756]
[1743239956358,9.12087,1880.3,1880.2,40.80795756]
[1743239962576,11.62087,1880.3,1880.2,40.80795756]
[1743239963677,9.12087,1880.3,1880.2,40.80795756]
[1743239964178,5.91407,1880.3,1880.2,40.80795756]
[1743239964568,5.91407,1880.3,1880.2,42.96835756]
[1743239966267,5.91407,1880.3,1880.2,42.25265756]
[1743239971880,4.44717,1880.3,1880.2,42.25265756]
[1743239972287,1.06417,1880.3,1880.2,42.25265756]
[1743239972576,1.06409,1880.5,1880.2,46.52464756]
[1743239972788,1.06401,1880.6,1880.4,4.27189]
[1743239972974,1.06398,1880.7,1880.5,2.841]
[1743239973174,1.06398,1880.7,1880.6,42.2813]
[1743239973372,4.44698,1880.7,1880.6,42.2813]
[1743239973874,3.383,1880.7,1880.6,45.4891]
[1743239974077,3.383,1880.7,1880.6,46.5531]
[1743239974479,3.383,1880.7,1880.6,45.4891]
[1743239976384,3.383,1880.7,1880.6,46.5531]
[1743239979386,49.136,1881.0,1880.6,46.5531]
[1743239979387,1.06384,1880.9,1880.7,1.0639]
[1743239979586,1.06384,1880.9,1880.8,4.6577]
[1743239979783,4.44684,1880.9,1880.8,4.6577]
[1743239979984,3.383,1880.9,1880.8,45.4577]
[1743239980387,4.44683,1880.9,1880.8,45.4577]
[1743239982287,3.383,1880.9,1880.8,45.4577]
[1743239982887,4.44683,1880.9,1880.8,45.4577]
[1743239983089,3.383,1880.9,1880.8,46.52158]
[1743239983284,4.44683,1880.9,1880.8,45.4577]
[1743239984790,4.44683,1880.9,1880.8,42.2499]
[1743239984985,6.54773,1880.9,1880.8,42.2499]
[1743239993918,6.54773,1880.9,1880.8,40.8]
[1743239994818,9.75553,1880.9,1880.8,40.8]
[1743239996419,12.25553,1880.9,1880.8,40.8]
[1743239998613,2.65973,1880.8,1880.2,0.00795756]
[1743239998810,1.06417,1880.3,1880.2,4.64215756]
[1743239999010,4.44617,1880.3,1880.2,4.64215756]
[1743239999414,4.44617,1880.3,1880.2,1.43435756]
[1743239999624,4.44617,1880.3,1880.2,42.23435756]
[1743240000009,5.86037,1880.3,1880.2,42.23435756]
[1743240004416,5.86037,1880.3,1880.2,40.80795756]
[1743240005924,2.47837,1880.3,1880.2,40.80795756]
[1743240006218,3.383,1880.3,1880.2,40.80795756]
[1743240006422,4.44717,1880.3,1880.2,44.01575756]
[1743240006617,4.44717,1880.3,1880.2,45.46315756]
[1743240007321,3.383,1880.3,1880.2,45.46315756]
[1743240007826,4.44717,1880.3,1880.2,45.46315756]
[1743240014330,4.44717,1880.3,1880.2,42.25535756]
[1743240015919,3.383,1880.3,1880.2,42.25535756]
[1743240016621,20.06184974,1880.5,1880.4,1.06411]
[1743240016822,16.67884974,1880.5,1880.4,4.27191]
[1743240017025,16.67884974,1880.5,1880.4,6.77191]
[1743240017225,16.67884974,1880.5,1880.4,48.28671]
[1743240017822,3.383,1880.7,1880.4,47.2226]
[1743240018025,3.383,1880.7,1880.6,4.2718]
[1743240018225,1.06389,1880.8,1880.6,4.27175]
[1743240018420,4.44689,1880.8,1880.7,1.3653]
[1743240018620,4.44689,1880.8,1880.7,42.1653]
[1743240020427,5.15489,1880.8,1880.7,42.1653]
[1743240020731,6.55639,1880.8,1880.7,42.1653]
[1743240028936,3.382,1880.8,1880.7,42.1653]
[1743240029734,4.44588,1880.8,1880.7,42.1653]